[Event "Titled Tuesday Blitz July 11 Early 2023"]
[White "Matyukov, Petr"]
[Black "Zhigalko, Sergei"]
[WhiteFideId "4103688"]
[BlackFideId "13502956"]
[WhiteElo "2489"]
[BlackElo "2889"]
[Result "0-1"]
[Round "1"]
[TimeControl "180+2"]
[Date "2023.07.11"]
[WhiteClock "0:00:15"]
[BlackClock "0:00:47"]
[Board "29"]

1. d4 {[%clk 0:02:59]}  Nf6 {[%clk 0:02:59]} 2. c4 {[%clk 0:03:00]}  e6 {[%clk 0:02:59]} 3. Nc3 {[%clk 0:03:00]}  Bb4 {[%clk 0:02:59]} 4. e3 {[%clk 0:03:00]}  O-O {[%clk 0:02:59]} 5. Ne2 {[%clk 0:03:00]}  d5 {[%clk 0:02:58]} 6. a3 {[%clk 0:02:59]}  Be7 {[%clk 0:02:58]} 7. cxd5 {[%clk 0:02:59]}  exd5 {[%clk 0:02:59]} 8. b4 {[%clk 0:02:55]}  Re8 {[%clk 0:02:51]} 9. Ng3 {[%clk 0:02:42]}  Nbd7 {[%clk 0:02:25]} 10. Bd3 {[%clk 0:02:36]}  Nb6 {[%clk 0:02:23]} 11. O-O {[%clk 0:02:24]}  g6 {[%clk 0:02:23]} 12. f3 {[%clk 0:02:15]}  Bf8 {[%clk 0:02:09]} 13. Re1 {[%clk 0:02:01]}  a5 {[%clk 0:02:06]} 14. b5 {[%clk 0:01:50]}  Bg7 {[%clk 0:01:41]} 15. Kh1 {[%clk 0:01:44]}  h5 {[%clk 0:01:37]} 16. Qc2 {[%clk 0:01:20]}  h4 {[%clk 0:01:36]} 17. Nge2 {[%clk 0:01:19]}  Be6 {[%clk 0:01:17]} 18. e4 {[%clk 0:01:14]}  dxe4 {[%clk 0:01:17]} 19. fxe4 {[%clk 0:01:15]}  Ng4 {[%clk 0:01:18]} 20. e5 {[%clk 0:00:46]}  Nf2+ {[%clk 0:00:56]} 21. Kg1 {[%clk 0:00:46]}  Nxd3 {[%clk 0:00:57]} 22. Qxd3 {[%clk 0:00:46]}  Bxe5 {[%clk 0:00:58]} 23. Ne4 {[%clk 0:00:28]}  Bf5 {[%clk 0:00:49]} 24. Bb2 {[%clk 0:00:16]}  Bxe4 {[%clk 0:00:48]} 25. Qxe4 {[%clk 0:00:15]}  Bxh2+ {[%clk 0:00:47]} 0-1


[Site "https://www.chess.com"]

[Event "Titled Tuesday Blitz July 11 Early 2023"]
[White "Turski, Bartlomiej"]
[Black "Sliwicki, Damian"]
[WhiteFideId "21810567"]
[BlackFideId "1127128"]
[WhiteElo "2872"]
[BlackElo "2488"]
[Result "1-0"]
[Round "1"]
[TimeControl "180+2"]
[Date "2023.07.11"]
[WhiteClock "0:01:13"]
[BlackClock "0:00:33"]
[Board "32"]

1. e4 {[%clk 0:02:58]}  c5 {[%clk 0:02:52]} 2. Nf3 {[%clk 0:02:57]}  g6 {[%clk 0:02:52]} 3. c4 {[%clk 0:02:56]}  Nc6 {[%clk 0:02:49]} 4. d4 {[%clk 0:02:55]}  cxd4 {[%clk 0:02:50]} 5. Nxd4 {[%clk 0:02:56]}  Nf6 {[%clk 0:02:46]} 6. Nc3 {[%clk 0:02:56]}  Nxd4 {[%clk 0:02:43]} 7. Qxd4 {[%clk 0:02:56]}  d6 {[%clk 0:02:43]} 8. Be2 {[%clk 0:02:54]}  Bg7 {[%clk 0:02:43]} 9. Be3 {[%clk 0:02:54]}  O-O {[%clk 0:02:41]} 10. Qd2 {[%clk 0:02:54]}  a5 {[%clk 0:02:39]} 11. O-O {[%clk 0:02:51]}  a4 {[%clk 0:02:38]} 12. Bd4 {[%clk 0:02:37]}  Qa5 {[%clk 0:02:38]} 13. Rad1 {[%clk 0:02:31]}  Be6 {[%clk 0:02:37]} 14. b3 {[%clk 0:02:29]}  axb3 {[%clk 0:02:35]} 15. axb3 {[%clk 0:02:30]}  Rfc8 {[%clk 0:02:23]} 16. f4 {[%clk 0:02:19]}  Bg4 {[%clk 0:02:19]} 17. e5 {[%clk 0:02:13]}  Bxe2 {[%clk 0:02:16]} 18. Qxe2 {[%clk 0:02:11]}  Nd7 {[%clk 0:01:55]} 19. Nd5 {[%clk 0:02:01]}  Re8 {[%clk 0:01:54]} 20. Qe3 {[%clk 0:01:52]}  e6 {[%clk 0:01:42]} 21. b4 {[%clk 0:01:47]}  Qa3 {[%clk 0:01:37]} 22. Rd3 {[%clk 0:01:43]}  Qa2 {[%clk 0:01:33]} 23. Nc7 {[%clk 0:01:41]}  dxe5 {[%clk 0:01:33]} 24. fxe5 {[%clk 0:01:37]}  Qxc4 {[%clk 0:01:32]} 25. Rc3 {[%clk 0:01:37]}  Qxb4 {[%clk 0:01:29]} 26. Nxa8 {[%clk 0:01:36]}  Rxa8 {[%clk 0:01:29]} 27. Rc7 {[%clk 0:01:33]}  Rd8 {[%clk 0:01:19]} 28. Qf2 {[%clk 0:01:33]}  Qf8 {[%clk 0:01:10]} 29. Rxb7 {[%clk 0:01:30]}  Bxe5 {[%clk 0:01:05]} 30. Rxd7 {[%clk 0:01:28]}  Bxh2+ {[%clk 0:00:54]} 31. Kxh2 {[%clk 0:01:28]}  Rxd7 {[%clk 0:00:54]} 32. Qf6 {[%clk 0:01:29]}  Qh6+ {[%clk 0:00:46]} 33. Kg1 {[%clk 0:01:24]}  e5 {[%clk 0:00:33]} 34. Qxe5 {[%clk 0:01:13]} 1-0


[Site "https://www.chess.com"]

[Event "Titled Tuesday Blitz July 11 Early 2023"]
[White "Camacho Collados, Marcos"]
[Black "Grandelius, Nils"]
[WhiteFideId "2266237"]
[BlackFideId "1710400"]
[WhiteElo "2486"]
[BlackElo "2870"]
[Result "0-1"]
[Round "1"]
[TimeControl "180+2"]
[Date "2023.07.11"]
[WhiteClock "0:00:00"]
[BlackClock "0:00:30"]
[Board "33"]

1. Nf3 {[%clk 0:03:00]}  d5 {[%clk 0:02:59]} 2. g3 {[%clk 0:03:00]}  Nc6 {[%clk 0:02:58]} 3. Bg2 {[%clk 0:03:01]}  e5 {[%clk 0:02:57]} 4. d3 {[%clk 0:03:02]}  f5 {[%clk 0:02:57]} 5. c4 {[%clk 0:03:01]}  dxc4 {[%clk 0:02:55]} 6. Qa4 {[%clk 0:02:49]}  Bd6 {[%clk 0:02:53]} 7. Qxc4 {[%clk 0:02:38]}  Nf6 {[%clk 0:02:53]} 8. O-O {[%clk 0:02:23]}  Qe7 {[%clk 0:02:52]} 9. Nc3 {[%clk 0:02:18]}  a6 {[%clk 0:02:47]} 10. h4 {[%clk 0:01:29]}  h6 {[%clk 0:02:43]} 11. Ne1 {[%clk 0:00:43]}  Nd4 {[%clk 0:02:21]} 12. Qa4+ {[%clk 0:00:31]}  Bd7 {[%clk 0:02:20]} 13. Qd1 {[%clk 0:00:32]}  Bc6 {[%clk 0:02:19]} 14. e3 {[%clk 0:00:21]}  Bxg2 {[%clk 0:02:19]} 15. Kxg2 {[%clk 0:00:21]}  Ne6 {[%clk 0:02:15]} 16. d4 {[%clk 0:00:15]}  O-O-O {[%clk 0:02:09]} 17. Qa4 {[%clk 0:00:10]}  exd4 {[%clk 0:01:54]} 18. exd4 {[%clk 0:00:11]}  g5 {[%clk 0:01:55]} 19. Nf3 {[%clk 0:00:09]}  f4 {[%clk 0:01:49]} 20. Re1 {[%clk 0:00:09]}  Qd7 {[%clk 0:01:40]} 21. Qxd7+ {[%clk 0:00:08]}  Kxd7 {[%clk 0:01:39]} 22. Ne5+ {[%clk 0:00:09]}  Bxe5 {[%clk 0:01:38]} 23. dxe5 {[%clk 0:00:10]}  Nh5 {[%clk 0:01:35]} 24. Ne4 {[%clk 0:00:07]}  gxh4 {[%clk 0:01:31]} 25. g4 {[%clk 0:00:07]}  f3+ {[%clk 0:01:27]} 26. Kxf3 {[%clk 0:00:07]}  Rdf8+ {[%clk 0:01:27]} 27. Kg2 {[%clk 0:00:07]}  Nhf4+ {[%clk 0:01:27]} 28. Bxf4 {[%clk 0:00:07]}  Rxf4 {[%clk 0:01:26]} 29. Rad1+ {[%clk 0:00:07]}  Ke7 {[%clk 0:01:26]} 30. Nf6 {[%clk 0:00:07]}  Rd4 {[%clk 0:01:15]} 31. Rxd4 {[%clk 0:00:06]}  Nxd4 {[%clk 0:01:16]} 32. Nd5+ {[%clk 0:00:04]}  Kd7 {[%clk 0:01:13]} 33. f4 {[%clk 0:00:05]}  h5 {[%clk 0:01:06]} 34. f5 {[%clk 0:00:04]}  hxg4 {[%clk 0:01:05]} 35. Nf6+ {[%clk 0:00:05]}  Ke7 {[%clk 0:01:04]} 36. Nd5+ {[%clk 0:00:05]}  Kf8 {[%clk 0:00:56]} 37. f6 {[%clk 0:00:04]}  Nf3 {[%clk 0:00:51]} 38. Rd1 {[%clk 0:00:02]}  h3+ {[%clk 0:00:50]} 39. Kg3 {[%clk 0:00:02]}  h2 {[%clk 0:00:51]} 40. e6 {[%clk 0:00:02]}  h1=Q {[%clk 0:00:45]} 41. e7+ {[%clk 0:00:03]}  Kf7 {[%clk 0:00:45]} 42. Rxh1 {[%clk 0:00:02]}  Rxh1 {[%clk 0:00:46]} 43. Nxc7 {[%clk 0:00:03]}  Re1 {[%clk 0:00:45]} 44. Kxg4 {[%clk 0:00:04]}  Ne5+ {[%clk 0:00:42]} 45. Kf5 {[%clk 0:00:04]}  Nc4 {[%clk 0:00:34]} 46. b3 {[%clk 0:00:03]}  Nd6+ {[%clk 0:00:34]} 47. Kg5 {[%clk 0:00:03]}  Rf1 {[%clk 0:00:31]} 48. Nd5 {[%clk 0:00:00]}  Rf5+ {[%clk 0:00:30]} 0-1


[Site "https://www.chess.com"]

[Event "Titled Tuesday Blitz July 11 Early 2023"]
[White "Henriquez Villagra, Cristobal"]
[Black "Mindhunter08"]
[WhiteFideId "3409350"]
[WhiteElo "2866"]
[BlackElo "2486"]
[Result "1-0"]
[Round "1"]
[TimeControl "180+2"]
[Date "2023.07.11"]
[WhiteClock "0:01:32"]
[BlackClock "0:00:25"]
[Board "34"]

1. g3 {[%clk 0:02:57]}  d5 {[%clk 0:02:58]} 2. Bg2 {[%clk 0:02:56]}  e5 {[%clk 0:02:58]} 3. d3 {[%clk 0:02:56]}  Nc6 {[%clk 0:02:55]} 4. Nf3 {[%clk 0:02:54]}  g6 {[%clk 0:02:55]} 5. O-O {[%clk 0:02:53]}  Bg7 {[%clk 0:02:55]} 6. e4 {[%clk 0:02:53]}  dxe4 {[%clk 0:02:52]} 7. dxe4 {[%clk 0:02:52]}  Qxd1 {[%clk 0:02:48]} 8. Rxd1 {[%clk 0:02:53]}  Bg4 {[%clk 0:02:48]} 9. c3 {[%clk 0:02:50]}  Nf6 {[%clk 0:02:45]} 10. h3 {[%clk 0:02:50]}  Be6 {[%clk 0:02:42]} 11. Re1 {[%clk 0:02:28]}  O-O {[%clk 0:02:41]} 12. b4 {[%clk 0:02:19]}  a6 {[%clk 0:02:40]} 13. Ng5 {[%clk 0:02:15]}  Bd7 {[%clk 0:02:33]} 14. Nd2 {[%clk 0:02:15]}  Rad8 {[%clk 0:02:28]} 15. a4 {[%clk 0:02:14]}  h6 {[%clk 0:02:25]} 16. Ngf3 {[%clk 0:02:14]}  Rfe8 {[%clk 0:02:25]} 17. Bf1 {[%clk 0:02:12]}  Bc8 {[%clk 0:02:18]} 18. b5 {[%clk 0:02:07]}  Na5 {[%clk 0:02:17]} 19. Ba3 {[%clk 0:01:58]}  Bf8 {[%clk 0:02:15]} 20. Bb4 {[%clk 0:01:58]}  b6 {[%clk 0:02:05]} 21. Bxa5 {[%clk 0:01:50]}  bxa5 {[%clk 0:02:05]} 22. bxa6 {[%clk 0:01:51]}  Bc5 {[%clk 0:02:02]} 23. Kg2 {[%clk 0:01:49]}  Nd7 {[%clk 0:01:43]} 24. Bb5 {[%clk 0:01:45]}  f6 {[%clk 0:01:39]} 25. Nb3 {[%clk 0:01:43]}  Bb6 {[%clk 0:01:36]} 26. c4 {[%clk 0:01:43]}  c5 {[%clk 0:01:22]} 27. Rad1 {[%clk 0:01:37]}  Re7 {[%clk 0:01:13]} 28. Rd6 {[%clk 0:01:34]}  Bc7 {[%clk 0:00:53]} 29. a7 {[%clk 0:01:31]}  Bb7 {[%clk 0:00:51]} 30. Rxd7 {[%clk 0:01:31]}  Rexd7 {[%clk 0:00:50]} 31. Bxd7 {[%clk 0:01:32]}  Rxd7 {[%clk 0:00:25]} 32. Nxc5 {[%clk 0:01:32]} 1-0


[Site "https://www.chess.com"]

[Event "Titled Tuesday Blitz July 11 Early 2023"]
[White "Nguyen, Ngoc Truong Son"]
[Black "Namitbir Singh Walia"]
[WhiteFideId "12401110"]
[BlackFideId "35071068"]
[WhiteElo "2862"]
[BlackElo "2485"]
[Result "1-0"]
[Round "1"]
[TimeControl "180+2"]
[Date "2023.07.11"]
[WhiteClock "0:02:12"]
[BlackClock "0:01:12"]
[Board "36"]

1. e4 {[%clk 0:02:59]}  c5 {[%clk 0:02:57]} 2. Nf3 {[%clk 0:02:59]}  Nc6 {[%clk 0:02:57]} 3. Bb5 {[%clk 0:02:57]}  e5 {[%clk 0:02:55]} 4. Nc3 {[%clk 0:02:46]}  Bd6 {[%clk 0:02:53]} 5. d3 {[%clk 0:02:45]}  Nge7 {[%clk 0:02:52]} 6. Bc4 {[%clk 0:02:31]}  h6 {[%clk 0:02:41]} 7. a3 {[%clk 0:02:20]}  O-O {[%clk 0:02:41]} 8. g4 {[%clk 0:02:17]}  Nd4 {[%clk 0:02:03]} 9. g5 {[%clk 0:02:16]}  hxg5 {[%clk 0:01:59]} 10. Nxg5 {[%clk 0:02:14]}  Ng6 {[%clk 0:01:12]} 11. Qh5 {[%clk 0:02:12]} 1-0


[Site "https://www.chess.com"]

[Event "Titled Tuesday Blitz July 11 Early 2023"]
[White "Kulkarni, Rakesh"]
[Black "Timofeev, Artyom"]
[WhiteFideId "5037077"]
[BlackFideId "4140419"]
[WhiteElo "2485"]
[BlackElo "2846"]
[Result "0-1"]
[Round "1"]
[TimeControl "180+2"]
[Date "2023.07.11"]
[WhiteClock "0:02:24"]
[BlackClock "0:02:14"]
[Board "37"]

1. e4 {[%clk 0:02:55]}  d6 {[%clk 0:02:59]} 2. d4 {[%clk 0:02:54]}  Nf6 {[%clk 0:02:59]} 3. Nc3 {[%clk 0:02:54]}  g6 {[%clk 0:02:59]} 4. f3 {[%clk 0:02:55]}  Bg7 {[%clk 0:02:56]} 5. Be3 {[%clk 0:02:55]}  c6 {[%clk 0:02:56]} 6. Qd2 {[%clk 0:02:56]}  b5 {[%clk 0:02:55]} 7. g4 {[%clk 0:02:56]}  b4 {[%clk 0:02:54]} 8. Nd1 {[%clk 0:02:55]}  a5 {[%clk 0:02:53]} 9. c3 {[%clk 0:02:55]}  Na6 {[%clk 0:02:49]} 10. Ne2 {[%clk 0:02:53]}  c5 {[%clk 0:02:45]} 11. g5 {[%clk 0:02:51]}  Nd7 {[%clk 0:02:43]} 12. h4 {[%clk 0:02:51]}  bxc3 {[%clk 0:02:42]} 13. Ndxc3 {[%clk 0:02:51]}  Bb7 {[%clk 0:02:28]} 14. h5 {[%clk 0:02:50]}  Nb4 {[%clk 0:02:25]} 15. a3 {[%clk 0:02:36]}  Nc6 {[%clk 0:02:23]} 16. O-O-O {[%clk 0:02:32]}  cxd4 {[%clk 0:02:20]} 17. Nxd4 {[%clk 0:02:33]}  Nc5 {[%clk 0:02:17]} 18. Bb5 {[%clk 0:02:29]}  Bxd4 {[%clk 0:02:15]} 19. Bxd4 {[%clk 0:02:24]}  Nb3+ {[%clk 0:02:14]} 0-1


[Site "https://www.chess.com"]

[Event "Titled Tuesday Blitz July 11 Early 2023"]
[White "Llorente Zaro, Alfonso"]
[Black "Belov, Alexei"]
[WhiteFideId "2254131"]
[BlackFideId "4128206"]
[WhiteElo "2840"]
[BlackElo "2482"]
[Result "1-0"]
[Round "1"]
[TimeControl "180+2"]
[Date "2023.07.11"]
[WhiteClock "0:01:39"]
[BlackClock "0:00:31"]
[Board "40"]

1. e4 {[%clk 0:02:57]}  e6 {[%clk 0:03:00]} 2. d4 {[%clk 0:02:56]}  d5 {[%clk 0:03:00]} 3. Nc3 {[%clk 0:02:55]}  Nf6 {[%clk 0:03:01]} 4. Bg5 {[%clk 0:02:51]}  dxe4 {[%clk 0:03:00]} 5. Nxe4 {[%clk 0:02:50]}  Be7 {[%clk 0:03:01]} 6. Bxf6 {[%clk 0:02:49]}  Bxf6 {[%clk 0:03:01]} 7. Nf3 {[%clk 0:02:49]}  O-O {[%clk 0:03:01]} 8. Bd3 {[%clk 0:02:50]}  Bxd4 {[%clk 0:03:00]} 9. Nxd4 {[%clk 0:02:46]}  Qxd4 {[%clk 0:03:00]} 10. O-O {[%clk 0:02:46]}  Nc6 {[%clk 0:02:54]} 11. Ng5 {[%clk 0:02:45]}  g6 {[%clk 0:02:44]} 12. Nf3 {[%clk 0:02:35]}  Qxb2 {[%clk 0:02:43]} 13. Rb1 {[%clk 0:02:32]}  Qf6 {[%clk 0:02:41]} 14. Be4 {[%clk 0:02:33]}  Rd8 {[%clk 0:02:36]} 15. Qe2 {[%clk 0:02:31]}  Na5 {[%clk 0:02:01]} 16. Rb5 {[%clk 0:02:12]}  Qc3 {[%clk 0:01:50]} 17. Qe1 {[%clk 0:02:12]}  Qxe1 {[%clk 0:01:42]} 18. Rxe1 {[%clk 0:02:13]}  Nc4 {[%clk 0:01:36]} 19. Bxb7 {[%clk 0:02:04]}  Rb8 {[%clk 0:01:26]} 20. Bc6 {[%clk 0:02:04]}  Rxb5 {[%clk 0:01:14]} 21. Bxb5 {[%clk 0:02:05]}  Nb6 {[%clk 0:01:13]} 22. Ne5 {[%clk 0:01:57]}  Rd2 {[%clk 0:01:03]} 23. Bd3 {[%clk 0:01:55]}  c5 {[%clk 0:00:58]} 24. Nf3 {[%clk 0:01:54]}  Rxd3 {[%clk 0:00:55]} 25. cxd3 {[%clk 0:01:55]}  Ba6 {[%clk 0:00:51]} 26. Rc1 {[%clk 0:01:52]}  Bxd3 {[%clk 0:00:45]} 27. Rxc5 {[%clk 0:01:52]}  Bc4 {[%clk 0:00:45]} 28. a3 {[%clk 0:01:48]}  Kg7 {[%clk 0:00:41]} 29. Rc7 {[%clk 0:01:47]}  Kf6 {[%clk 0:00:40]} 30. Rxa7 {[%clk 0:01:46]}  Bd5 {[%clk 0:00:39]} 31. h4 {[%clk 0:01:42]}  h6 {[%clk 0:00:39]} 32. a4 {[%clk 0:01:40]}  e5 {[%clk 0:00:31]} 33. Ra6 {[%clk 0:01:39]} 1-0


[Site "https://www.chess.com"]

[Event "Titled Tuesday Blitz July 11 Early 2023"]
[White "Kravtsiv, Martyn"]
[Black "Novikov, Evgenij"]
[WhiteFideId "14113147"]
[BlackFideId "4125380"]
[WhiteElo "2834"]
[BlackElo "2481"]
[Result "1/2-1/2"]
[Round "1"]
[TimeControl "180+2"]
[Date "2023.07.11"]
[WhiteClock "0:00:10"]
[BlackClock "0:00:05"]
[Board "42"]

1. e4 {[%clk 0:02:59]}  c6 {[%clk 0:02:59]} 2. Nf3 {[%clk 0:02:59]}  d5 {[%clk 0:02:59]} 3. d3 {[%clk 0:02:59]}  Bg4 {[%clk 0:02:57]} 4. h3 {[%clk 0:02:59]}  Bxf3 {[%clk 0:02:56]} 5. Qxf3 {[%clk 0:03:00]}  e6 {[%clk 0:02:54]} 6. g3 {[%clk 0:02:58]}  Nf6 {[%clk 0:02:53]} 7. Bg2 {[%clk 0:02:58]}  Be7 {[%clk 0:02:54]} 8. O-O {[%clk 0:02:56]}  O-O {[%clk 0:02:53]} 9. Qe2 {[%clk 0:02:55]}  dxe4 {[%clk 0:02:41]} 10. dxe4 {[%clk 0:02:55]}  e5 {[%clk 0:02:41]} 11. Nd2 {[%clk 0:02:54]}  Na6 {[%clk 0:02:34]} 12. Nc4 {[%clk 0:02:54]}  Qc7 {[%clk 0:02:31]} 13. b3 {[%clk 0:02:50]}  b5 {[%clk 0:02:11]} 14. Ne3 {[%clk 0:02:49]}  Rfe8 {[%clk 0:02:07]} 15. Nf5 {[%clk 0:02:47]}  Bf8 {[%clk 0:02:05]} 16. Bg5 {[%clk 0:02:45]}  Nd7 {[%clk 0:01:55]} 17. Rad1 {[%clk 0:02:33]}  Nac5 {[%clk 0:01:51]} 18. h4 {[%clk 0:02:28]}  h6 {[%clk 0:01:49]} 19. Bc1 {[%clk 0:02:26]}  Ne6 {[%clk 0:01:47]} 20. Bh3 {[%clk 0:02:21]}  Rad8 {[%clk 0:01:33]} 21. Kh2 {[%clk 0:02:11]}  Nf6 {[%clk 0:01:27]} 22. f3 {[%clk 0:02:10]}  Rxd1 {[%clk 0:01:25]} 23. Rxd1 {[%clk 0:02:09]}  Rd8 {[%clk 0:01:25]} 24. Bb2 {[%clk 0:02:01]}  Rxd1 {[%clk 0:01:22]} 25. Qxd1 {[%clk 0:02:01]}  Qd7 {[%clk 0:01:22]} 26. Qxd7 {[%clk 0:01:58]}  Nxd7 {[%clk 0:01:23]} 27. Ne3 {[%clk 0:01:46]}  Bc5 {[%clk 0:01:23]} 28. Bxe6 {[%clk 0:01:41]}  fxe6 {[%clk 0:01:24]} 29. Ng4 {[%clk 0:01:40]}  Bd4 {[%clk 0:01:18]} 30. c3 {[%clk 0:01:40]}  Bc5 {[%clk 0:01:15]} 31. Kg2 {[%clk 0:01:40]}  h5 {[%clk 0:01:13]} 32. Nh2 {[%clk 0:01:39]}  Kf7 {[%clk 0:01:08]} 33. Nf1 {[%clk 0:01:38]}  a5 {[%clk 0:01:03]} 34. Bc1 {[%clk 0:01:37]}  Nb6 {[%clk 0:00:58]} 35. g4 {[%clk 0:01:36]}  g6 {[%clk 0:00:52]} 36. Ng3 {[%clk 0:01:33]}  hxg4 {[%clk 0:00:52]} 37. fxg4 {[%clk 0:01:34]}  a4 {[%clk 0:00:53]} 38. Kf3 {[%clk 0:01:33]}  axb3 {[%clk 0:00:52]} 39. axb3 {[%clk 0:01:32]}  b4 {[%clk 0:00:52]} 40. c4 {[%clk 0:01:31]}  Bd4 {[%clk 0:00:51]} 41. Bd2 {[%clk 0:01:21]}  c5 {[%clk 0:00:51]} 42. h5 {[%clk 0:01:16]}  gxh5 {[%clk 0:00:50]} 43. gxh5 {[%clk 0:01:17]}  Nd7 {[%clk 0:00:48]} 44. Bg5 {[%clk 0:01:14]}  Nb6 {[%clk 0:00:42]} 45. Kg4 {[%clk 0:01:08]}  Bf2 {[%clk 0:00:38]} 46. Nf1 {[%clk 0:01:05]}  Bd4 {[%clk 0:00:36]} 47. Nd2 {[%clk 0:01:05]}  Nc8 {[%clk 0:00:35]} 48. Bd8 {[%clk 0:00:58]}  Nd6 {[%clk 0:00:34]} 49. Bc7 {[%clk 0:00:58]}  Ne8 {[%clk 0:00:31]} 50. Bd8 {[%clk 0:00:57]}  Nd6 {[%clk 0:00:30]} 51. Kf3 {[%clk 0:00:52]}  Bc3 {[%clk 0:00:29]} 52. Nf1 {[%clk 0:00:51]}  Nxc4 {[%clk 0:00:27]} 53. Bc7 {[%clk 0:00:37]}  Na3 {[%clk 0:00:21]} 54. Kg4 {[%clk 0:00:27]}  c4 {[%clk 0:00:20]} 55. bxc4 {[%clk 0:00:19]}  b3 {[%clk 0:00:21]} 56. h6 {[%clk 0:00:12]}  b2 {[%clk 0:00:21]} 57. h7 {[%clk 0:00:11]}  Kg7 {[%clk 0:00:20]} 58. Nd2 {[%clk 0:00:10]}  b1=Q {[%clk 0:00:14]} 59. Nxb1 {[%clk 0:00:08]}  Nxb1 {[%clk 0:00:15]} 60. c5 {[%clk 0:00:09]}  Na3 {[%clk 0:00:12]} 61. c6 {[%clk 0:00:08]}  Nb5 {[%clk 0:00:12]} 62. Bd8 {[%clk 0:00:04]}  Kxh7 {[%clk 0:00:10]} 63. Kg5 {[%clk 0:00:04]}  Kg7 {[%clk 0:00:09]} 64. c7 {[%clk 0:00:04]}  Nxc7 {[%clk 0:00:09]} 65. Bxc7 {[%clk 0:00:04]}  Bd4 {[%clk 0:00:08]} 66. Kg4 {[%clk 0:00:04]}  Kg6 {[%clk 0:00:08]} 67. Kf3 {[%clk 0:00:04]}  Kg5 {[%clk 0:00:08]} 68. Bd8+ {[%clk 0:00:04]}  Kg6 {[%clk 0:00:07]} 69. Be7 {[%clk 0:00:04]}  Kf7 {[%clk 0:00:07]} 70. Bd6 {[%clk 0:00:04]}  Kf6 {[%clk 0:00:06]} 71. Kg4 {[%clk 0:00:04]}  Kg6 {[%clk 0:00:06]} 72. Be7 {[%clk 0:00:04]}  Kf7 {[%clk 0:00:06]} 73. Bh4 {[%clk 0:00:04]}  Ke8 {[%clk 0:00:06]} 74. Bg3 {[%clk 0:00:03]}  Kd7 {[%clk 0:00:06]} 75. Kg5 {[%clk 0:00:03]}  Kd6 {[%clk 0:00:06]} 76. Kf6 {[%clk 0:00:04]}  Bc3 {[%clk 0:00:06]} 77. Bf2 {[%clk 0:00:04]}  Bd4 {[%clk 0:00:05]} 78. Be1 {[%clk 0:00:04]}  Bb2 {[%clk 0:00:05]} 79. Bb4+ {[%clk 0:00:04]}  Kc6 {[%clk 0:00:05]} 80. Kxe6 {[%clk 0:00:02]}  Kc7 {[%clk 0:00:03]} 81. Bd6+ {[%clk 0:00:03]}  Kd8 {[%clk 0:00:03]} 82. Bxe5 {[%clk 0:00:04]}  Bxe5 {[%clk 0:00:03]} 83. Kxe5 {[%clk 0:00:04]}  Ke7 {[%clk 0:00:04]} 84. Kd5 {[%clk 0:00:04]}  Kd7 {[%clk 0:00:04]} 85. Ke5 {[%clk 0:00:05]}  Ke7 {[%clk 0:00:04]} 86. Kd5 {[%clk 0:00:05]}  Kd7 {[%clk 0:00:04]} 87. e5 {[%clk 0:00:05]}  Ke7 {[%clk 0:00:04]} 88. e6 {[%clk 0:00:06]}  Ke8 {[%clk 0:00:04]} 89. Kc6 {[%clk 0:00:07]}  Ke7 {[%clk 0:00:04]} 90. Kd5 {[%clk 0:00:07]}  Ke8 {[%clk 0:00:05]} 91. Kd6 {[%clk 0:00:08]}  Kd8 {[%clk 0:00:05]} 92. e7+ {[%clk 0:00:09]}  Ke8 {[%clk 0:00:05]} 93. Kc7 {[%clk 0:00:10]}  Kxe7 {[%clk 0:00:05]} 1/2-1/2


[Site "https://www.chess.com"]

[Event "Titled Tuesday Blitz July 11 Early 2023"]
[White "Akylbek2021"]
[Black "Sattarov, Bobir"]
[BlackFideId "14203081"]
[WhiteElo "2480"]
[BlackElo "2833"]
[Result "0-1"]
[Round "1"]
[TimeControl "180+2"]
[Date "2023.07.11"]
[WhiteClock "0:00:00"]
[BlackClock "0:00:29"]
[Board "43"]

1. e4 {[%clk 0:02:53]}  e5 {[%clk 0:02:58]} 2. Nf3 {[%clk 0:02:54]}  Nc6 {[%clk 0:02:59]} 3. Bb5 {[%clk 0:02:54]}  a6 {[%clk 0:02:59]} 4. Bxc6 {[%clk 0:02:55]}  dxc6 {[%clk 0:03:00]} 5. d4 {[%clk 0:02:56]}  exd4 {[%clk 0:02:59]} 6. Qxd4 {[%clk 0:02:54]}  Qxd4 {[%clk 0:02:47]} 7. Nxd4 {[%clk 0:02:55]}  c5 {[%clk 0:02:47]} 8. Ne2 {[%clk 0:02:54]}  Bd6 {[%clk 0:02:45]} 9. Nbc3 {[%clk 0:02:54]}  Ne7 {[%clk 0:02:44]} 10. Bf4 {[%clk 0:02:54]}  Be6 {[%clk 0:02:38]} 11. O-O-O {[%clk 0:02:52]}  O-O-O {[%clk 0:02:37]} 12. Bxd6 {[%clk 0:02:52]}  cxd6 {[%clk 0:02:38]} 13. Nf4 {[%clk 0:02:52]}  Rhe8 {[%clk 0:02:33]} 14. Nh5 {[%clk 0:02:36]}  Bg4 {[%clk 0:02:30]} 15. Nxg7 {[%clk 0:02:34]}  Rg8 {[%clk 0:02:29]} 16. f3 {[%clk 0:02:28]}  Rxg7 {[%clk 0:02:29]} 17. fxg4 {[%clk 0:02:27]}  Rxg4 {[%clk 0:02:30]} 18. g3 {[%clk 0:02:28]}  f5 {[%clk 0:02:28]} 19. Rhe1 {[%clk 0:02:09]}  f4 {[%clk 0:02:25]} 20. gxf4 {[%clk 0:01:50]}  Rxf4 {[%clk 0:02:26]} 21. Rg1 {[%clk 0:01:50]}  Ng6 {[%clk 0:02:20]} 22. b3 {[%clk 0:01:48]}  b5 {[%clk 0:02:12]} 23. Rge1 {[%clk 0:01:20]}  Ne5 {[%clk 0:02:00]} 24. a4 {[%clk 0:01:20]}  b4 {[%clk 0:01:57]} 25. Nd5 {[%clk 0:01:19]}  Rf2 {[%clk 0:01:57]} 26. Rf1 {[%clk 0:01:06]}  Rdf8 {[%clk 0:01:54]} 27. Ne7+ {[%clk 0:01:05]}  Kc7 {[%clk 0:01:51]} 28. Rxf2 {[%clk 0:00:48]}  Rxf2 {[%clk 0:01:50]} 29. Nf5 {[%clk 0:00:49]}  c4 {[%clk 0:01:24]} 30. Nxd6 {[%clk 0:00:43]}  c3 {[%clk 0:01:20]} 31. Nf5 {[%clk 0:00:37]}  Rxh2 {[%clk 0:01:17]} 32. a5 {[%clk 0:00:37]}  h5 {[%clk 0:01:15]} 33. Ne3 {[%clk 0:00:38]}  Kc6 {[%clk 0:01:11]} 34. Nd5 {[%clk 0:00:29]}  Kc5 {[%clk 0:01:09]} 35. Ne3 {[%clk 0:00:27]}  Ng4 {[%clk 0:00:51]} 36. Nc4 {[%clk 0:00:26]}  h4 {[%clk 0:00:36]} 37. Rd5+ {[%clk 0:00:23]}  Kc6 {[%clk 0:00:36]} 38. Kb1 {[%clk 0:00:23]}  h3 {[%clk 0:00:35]} 39. Rd6+ {[%clk 0:00:24]}  Kc7 {[%clk 0:00:34]} 40. Rg6 {[%clk 0:00:20]}  Rg2 {[%clk 0:00:31]} 41. Rg7+ {[%clk 0:00:18]}  Kd8 {[%clk 0:00:31]} 42. Nd6 {[%clk 0:00:12]}  h2 {[%clk 0:00:29]} 43. Nb7+ {[%clk 0:00:07]}  Ke8 {[%clk 0:00:28]} 44. Nd6+ {[%clk 0:00:08]}  Kf8 {[%clk 0:00:28]} 45. Rf7+ {[%clk 0:00:00]}  Kg8 {[%clk 0:00:29]} 0-1


[Site "https://www.chess.com"]